Cogmind - Beta 13 @@@ ROGUE MODE // 2024.04.18 @ 19:43:45 Player: Lia Result: Destroyed by G-34 Mercenary with Small Laser Performance ------------- Evolutions (1) 500 Regions Visited (3) 600 Robots Destroyed (24) 120 Value Destroyed (778) 778 Prototype IDs (5) 100 Alien Tech Used (0) 0 Bonus (22) 22 TOTAL SCORE: 2120 Bonus ------- High Alert Combat Kills 22 Cogmind --------- Core Integrity 0/400 Matter 225/300 Energy 190/250 System Corruption 0% Temperature Cool (6) Movement Walking (120) Location -9/Storage Parts ------- > --- POWER (1) -------- Ion Engine > --- PROPULSION (4) --- Aluminum Leg Improved Aluminum Leg > --- UTILITY (2) ------ Small Storage Unit > --- WEAPON (2) ------- Heavy Assault Rifle Mini Grenade Launcher > --- INVENTORY (8) ---- Aluminum Leg Flight Unit VTOL Module VTOL Module Weight Redist. System Propulsion Shielding Peak State ------------ > --- POWER ------------ Ion Engine > --- PROPULSION ------- Aluminum Leg Improved Aluminum Leg Improved Aluminum Leg Improved Aluminum Leg > --- UTILITY ---------- Small Storage Unit Reaction Control System > --- WEAPON ----------- Blade Saw Blade Saw > --- INVENTORY -------- Hover Unit Weight Redist. System Reaction Control System Propulsion Shielding Mini Grenade Launcher Mini Grenade Launcher Blade Saw [Rating: 19] Favorites ----------- Power Light Ion Engine Engine Light Ion Engine Propulsion Aluminum Leg Leg Aluminum Leg Utility Small Storage Unit Device Weight Redist. System Storage Small Storage Unit Protection Light Armor Plating Weapon Blade Saw Energy Gun Small Laser Energy Cannon Beam Cannon Ballistic Gun Heavy Assault Rifle Launcher Mini Grenade Launcher Slashing Weapon Blade Saw Build | -11 -10 -9 -9 ------- Run | Yrd Mat Mat Sto Slots Evolved 2 | . . 2 . Power . | . . . . Propulsion 2 | . . 2 . Utility . | . . . . Weapon . | . . . . Parts Attached 29 | . 3 16 10 Power 3 | . . 2 1 Engine 3 | . . 2 1 Core . | . . . . Reactor . | . . . . Propulsion 9 | . . 7 2 Treads . | . . . . Leg 9 | . . 7 2 Wheel . | . . . . Hover . | . . . . Flight . | . . . . Utility 6 | . 1 4 1 Device 4 | . 1 2 1 Storage . | . . . . Processor . | . . . . Hackware . | . . . . Protection 2 | . . 2 . Artifact . | . . . . Weapon 11 | . 2 3 6 Energy Gun 1 | . 1 . . Energy Cannon 1 | . 1 . . Ballistic Gun 1 | . . . 1 Ballistic Cannon . | . . . . Launcher 2 | . . . 2 Special Weapon . | . . . . Impact Weapon . | . . . . Slashing Weapon 6 | . . 3 3 Piercing Weapon . | . . . . Special Melee Weapon . | . . . . Unidentified Prototypes . | . . . . Parts Lost 15 | . . 6 9 Power 2 | . . 1 1 Propulsion 5 | . . 2 3 Utility 4 | . . 2 2 Weapon 4 | . . 1 3 Highest Loss Streak 6 | . . 2 6 To Critical Strikes . | . . . . Average Slot Usage (%) 92 | . 92 94 88 Engine 11 | . 14 10 9 Leg 37 | . 28 39 43 Device 3 | . 7 3 1 Storage 11 | . 14 11 11 Protection 5 | . . 7 6 Energy Gun 4 | . 21 . . Energy Cannon 1 | . 6 . . Launcher 1 | . . . 8 Slashing Weapon 13 | . . 20 4 Naked Turns . | . . . . Heaviest Build 17 | 10 13 17 17 Greatest Support 49 | 20 26 49 46 Greatest Overweight (x) . | . . . . Average Overweight (x) . | . . . . Largest Inventory Capacity 8 | . 8 8 8 Average Capacity 8 | . 8 8 8 Most Carried 8 | . 8 8 8 Average Carried 7 | . 7 7 6 Final Capacity 8 | 8 8 8 8 Final Carried 8 | 6 8 7 6 Class Distribution -------------------- 90% | Mutant 9% | Scavenger-Mutant Dominant Class ---------------- Mutant | -10/Materials Mutant | -9/Materials Scavenger-Mutant | -9/Storage Resources | -11 -10 -9 -9 ----------- Run | Yrd Mat Mat Sto Matter Collected 452 | 200 . 165 87 Remotely . | . . . . Salvage Created 873 | . 46 331 496 Parts 46 | . 3 10 33 Haulers Intercepted 1 | . 1 . . Recyclers Shooed 1 | . . . 1 Parts Field Recycled . | . . . . Retrieved Matter . | . . . . Parts Self-Destructed . | . . . . Prevented . | . . . . Kills | -11 -10 -9 -9 ------- Run | Yrd Mat Mat Sto Combat Hostiles Destroyed 17 | . . 7 10 Melee 9 | . . 7 2 Guns 2 | . . . 2 AOE 6 | . . . 6 Classes Destroyed 7 | . 1 3 3 Worker 1 | . . . 1 Hauler 1 | . 1 . . Recycler 2 | . . . 2 Mechanic 1 | . . . 1 Operator 2 | . . 1 1 Grunt 10 | . . 5 5 Sentry 7 | . . 2 5 Best Kill Streak 8 | . 1 2 8 Combat Bots Only 5 | . . 2 5 Max Kills in Single Turn 4 | . 1 1 4 Gunslinging . | . . . . Exploded 2 | . . . 2 Melee 1 | . . 1 1 Uniques/NPCs Destroyed . | . . . . Combat | -11 -10 -9 -9 -------- Run | Yrd Mat Mat Sto Hostile Shots Fired 153 | . . 92 61 Missed 35 | . . 20 15 Damage Taken 1865 | . . 1101 764 Core 400 | . . 258 142 Absorbed by Shields . | . . . . Core Remaining (%) 100 | 100 100 . . Volleys Fired 20 | . 6 . 14 Largest 2 | . 2 . 2 Hottest 80 | . 80 . 53 Shots Fired 28 | . 12 . 16 Gun 20 | . 12 . 8 Cannon . | . . . . Launcher 8 | . . . 8 Special . | . . . . Kinetic 8 | . . . 8 Thermal 12 | . 12 . . Explosive 8 | . . . 8 Electromagnetic . | . . . . Robot Hit Streak 8 | . 3 . 8 Robot Miss Streak 2 | . 2 . 1 Penetration Max . | . . . . Secondary Targets . | . . . . Shots Hit Robots 83 | . 7 55 21 Core Hits 38 | . 2 10 26 Critical Kills . | . . . . Critical Parts Destroyed . | . . . . Critical Strikes 20 | . . 19 1 Sever 20 | . . 19 1 Melee Attacks 81 | . . 70 11 Impact . | . . . . Slashing 81 | . . 70 11 Piercing . | . . . . Sneak Attacks 1 | . . 1 . Combat Hostiles . | . . . . Follow-up Attacks 14 | . . 13 1 Damage Inflicted 1973 | . 78 884 1011 Guns 189 | . 78 . 111 Cannons . | . . . . Explosions 732 | . . . 732 Melee 1048 | . . 884 164 Ramming 4 | . . . 4 Kinetic 111 | . . . 111 Thermal 78 | . 78 . . Explosive 732 | . . . 732 Electromagnetic . | . . . . Impact . | . . . . Slashing 1048 | . . 884 164 Piercing . | . . . . Highest Corruption . | . . . . Average Corruption . | . . . . Corruption Purged . | . . . . Corruption Blocked . | . . . . Overload Shots . | . . . . Overflow Damage 92 | . . 15 77 Projectiles . | . . . . Explosions 77 | . . . 77 Melee 15 | . . 15 . Knockbacks . | . . . . Impact . | . . . . Kinetic . | . . . . Secondary . | . . . . Self-Inflicted Damage 120 | . . . 120 Shots 4 | . . . 4 Rammed . | . . . . Targets Rammed 1 | . . . 1 Kicked 1 | . . . 1 Crushed . | . . . . Highest Temperature 36 | . 36 7 8 Average Temperature 13 | . 15 6 5 Received Heat Transfer 684 | . . 396 288 Siege Activations . | . . . . Robots Corrupted . | . . . . Combat Hostiles . | . . . . Parts Fried . | . . . . Impact Corruptions . | . . . . Robots Melted . | . . . . Combat Hostiles . | . . . . Parts Melted . | . . . . Heat Transferred 175 | . 175 . . Parts Sabotaged . | . . . . Parts Stolen . | . . . . Parts Stripped . | . . . . Power Chain Reactions . | . . . . Alert | -11 -10 -9 -9 ------- Run | Yrd Mat Mat Sto Peak Influence 462 | . 42 145 462 Initial 57 | . . 17 57 Average 79 | . 24 69 185 Maximum Alert Level 2 | . . . 2 Low Security (%) 92 | . 100 100 50 Level 1 7 | . . . 48 Level 2 . | . . . 1 Level 3 . | . . . . Level 4 . | . . . . Level 5 . | . . . . High Security . | . . . . Max Security . | . . . . Squads Dispatched 4 | . . 1 3 Investigation 1 | . . . 1 Extermination . | . . . . Reinforcement 3 | . . 1 2 Assault . | . . . . Garrison . | . . . . Intercept . | . . . . Searches Triggered . | . . . . Construction Impeded 1 | . . . 1 Haulers Reinforced . | . . . . Active Scanning Responses . | . . . . Cargo Convoy Interrupts . | . . . . Stealth | -11 -10 -9 -9 --------- Run | Yrd Mat Mat Sto Distress Signals 1 | . . 1 . Communications Jammed . | . . . . Distress Signals . | . . . . Times Spotted 33 | . 1 16 16 Peak Tracking Total 7 | . 1 4 7 Tactical Retreats 4 | . . 3 1 Traps | -11 -10 -9 -9 ------- Run | Yrd Mat Mat Sto Traps Triggered 1 | . . . 1 Indirectly . | . . . . Trap Hack Attempts . | . . . . Triggered . | . . . . Disarmed . | . . . . Reprogrammed . | . . . . Reused . | . . . . Traps Extracted . | . . . . Installed . | . . . . Triggered . | . . . . Machines | -11 -10 -9 -9 ---------- Run | Yrd Mat Mat Sto Machines Disabled 5 | . . . 5 Max in Single Turn 2 | . . . 2 Machines Repaired . | . . . . Machines Dismantled . | . . . . Machines Sabotaged . | . . . . Overloaded Fab Kills . | . . . . Hacking | -11 -10 -9 -9 --------- Run | Yrd Mat Mat Sto Machines Accessed 10 | . 3 6 1 Terminals 7 | . 3 3 1 Fabricators . | . . . . Repair Stations 1 | . . 1 . Recycling Units 1 | . . 1 . Scanalyzers 1 | . . 1 . Garrison Access . | . . . . Total Hacks 27 | . 9 15 3 Successful 11 | . 4 7 . Failed 16 | . 5 8 3 Catastrophic 2 | . . 1 1 Database Lockouts . | . . . . Manual 9 | . 6 3 . Terminals 18 | . 9 6 3 Fabricators . | . . . . Repair Stations 4 | . . 4 . Recycling Units 3 | . . 3 . Scanalyzers 2 | . . 2 . Garrison Access . | . . . . Terminal Hacks 7 | . 4 3 . Prototype ID Bank 3 | . 1 2 . Branch Access Points 1 | . 1 . . Locate Traps 1 | . 1 . . Registered Components 2 | . 1 1 . Fabricator Hacks . | . . . . Repair Station Hacks 1 | . . 1 . Scan Component 1 | . . 1 . Recycling Unit Hacks 1 | . . 1 . Report Inventory 1 | . . 1 . Scanalyzer 2 | . . 2 . Insert Component 1 | . . 1 . Analyze 1 | . . 1 . Garrison Access Hacks . | . . . . Unauthorized Hacks . | . . . . Terminals . | . . . . Fabricators . | . . . . Repair Stations . | . . . . Recycling Units . | . . . . Scanalyzers . | . . . . Garrison Access . | . . . . Data Cores Recovered . | . . . . Used . | . . . . Hacking Detections 9 | . 2 6 1 Full Trace Events 1 | . . 1 . Feedback Events . | . . . . Feedback Blocked . | . . . . Robot Schematics Acquired . | . . . . Robots Built . | . . . . Authchips . | . . . . Time . | . . . . Total Robot Build Rating . | . . . . Part Schematics Acquired 1 | . . 1 . Parts Built . | . . . . Authchips . | . . . . Time . | . . . . Total Part Build Rating . | . . . . Parts Repaired . | . . . . Time . | . . . . Parts Recycled . | . . . . Recycled Matter . | . . . . Retrieved Matter . | . . . . Retrieved Components . | . . . . Parts Scanalyzed 1 | . . 1 . Part Schematics Acquired 1 | . . 1 . Parts Damaged . | . . . . Bothacking | -11 -10 -9 -9 ------------ Run | Yrd Mat Mat Sto Used RIF Installer . | . . . . Robots Hacked . | . . . . Non-combat . | . . . . Combat . | . . . . Robot Hacks Applied . | . . . . Relay Couplers Released . | . . . . Fabnet Peak Effective % . | . . . . Robots Rewired . | . . . . Allies Hacked . | . . . . Hacks Repelled . | . . . . Allies | -11 -10 -9 -9 -------- Run | Yrd Mat Mat Sto Total Allies . | . . . . Largest Group . | . . . . Highest-Rated Group . | . . . . Highest-Rated Ally . | . . . . Total Orders . | . . . . Ally Attacks . | . . . . Total Damage . | . . . . Kills . | . . . . Allies Corrupted . | . . . . Allies Melted . | . . . . Intel | -11 -10 -9 -9 ------- Run | Yrd Mat Mat Sto Robot Analysis Total . | . . . . Derelict Logs Recovered . | . . . . Drone Launches . | . . . . Drone Recoveries . | . . . . Exploration | -11 -10 -9 -9 ------------- Run | Yrd Mat Mat Sto Turns Passed 1143 | . 228 730 185 Spaces Moved 612 | 1 159 362 90 Core . | . . . . Treads . | . . . . Legs 612 | 1 159 362 90 Wheels . | . . . . Hover . | . . . . Flight . | . . . . Fastest Speed 120 | 120 120 120 120 Average Speed 120 | 120 120 120 120 Slowest Speed 120 | 120 120 120 120 Overloaded Moves . | . . . . Propulsion Burnouts . | . . . . Robots Hopped . | . . . . Cave-ins Triggered . | . . . . Exploration Rate (%) 22 | 2 39 24 24 Regions Visited 3 Branch Regions 1 Pre-discovered Areas . | . . . . Known Exits Taken . | . . . . Unknown Exits Taken 3 | 1 1 1 . Scrap Searched . | . . . . Spaces Dug . | . . . . Terrain Destroyed 79 | . . . 79 Melee . | . . . . Projectile . | . . . . AOE 79 | . . . 79 Terrain Rammed . | . . . . Walls Destroyed . | . . . . Machines Disabled . | . . . . Actions | -11 -10 -9 -9 --------- Run | Yrd Mat Mat Sto Total 858 | . 186 544 128 Wait 89 | . 3 86 . Move 609 | . 158 361 90 Hop . | . . . . Pick Up 19 | . 8 10 1 Fast Attach 13 | . 2 7 4 Attach 8 | . . 5 3 Detach 4 | . 1 2 1 Swap 8 | . 1 4 3 Drop 22 | . 7 14 1 Fire 20 | . 6 . 14 Melee 65 | . . 55 10 Ram . | . . . . Kick 1 | . . . 1 Crush . | . . . . Escape Stasis . | . . . . Rewire . | . . . . Trap . | . . . . Miscellaneous . | . . . . Route ------- -11/Scrapyard -10/Materials (discovered 2 exits: *Mat / Min) -9/Materials -9/Storage History --------- Turn | Location | Event 1 | -11/Scrapyard | Discovered new exit (range 0) 1 | -11/Scrapyard | Entered Materials 201 | -10/Materials | Discovered new exit (range 15) 202 | -10/Materials | Identified exit to Mines 229 | -10/Materials | Entered another Materials area 229 | -9/Materials | Evolved 2 slots: Propulsion x2 315 | -9/Materials | Build established: Mutant 690 | -9/Materials | Discovered new exit (range 14) 750 | -9/Materials | Core integrity fell below 50% 959 | -9/Materials | Entered Storage 1083 | -9/Storage | Core integrity fell below 20% 1113 | -9/Storage | Lost 6 parts (1p1n1u3w) 1144 | -9/Storage | Destroyed by G-34 Mercenary with Small Laser Last Messages --------------- 01131_ G-34 Mercenary destroyed. 01131_ K-01 Serf destroyed. 01131_ Destroyed Machine Analyzer. 01131_ M-13 Machinist destroyed. 01136_ K-01 Serf collects debris. 01137_ Imp. Aluminum Leg destroyed. 01140_ R-06 Scavenger inserts Ion Engine into recycling unit. 01142_ Compression Vault explodes. 01142_ Heat Sink destroyed. 01142_ Destroyed Heat Sink. 01142_ Aluminum Leg destroyed. 01142_ Destroyed Aluminum Leg. 01142_ O-16 Technician destroyed. 01142_ Y-45 Defender destroyed. 01142_ R-06 Scavenger destroyed. 01142_ Y-45 Defender destroyed. 01142_ U-05 Engineer lays Concrete. 01143_ K-01 Serf collects debris. 01143_ U-05 Engineer lays Concrete. 01143_ K-01 Serf collects debris. Map ----- +----------------------------------------------------+ | ?????????????????????????????????????????????????? | | ?????????????????????????????????????????????????? | | ?????????????????????????????????????????????????? | | ?????????????????????????????????????????????????? | | ?????????????????????????????????????????????????? | | ?????????????????????????????????????????????????? | | ?????????????????????????????????????????????????? | | ??????????????????? ?????????????????????????????? | | ??????????????? ?? ?????????????????????????????? | | ????????????? ?# ?????????????????????????????? | | ????????????? ?# ??##??????????????? ????????## | | ???????????? # ?? ?????? ?????# ????????# | | ????????????? # ## ???? ???# ????????# | | ?????????????? + # """??? ???# ???????# | | ?????????????? # # """??? ???# ???????# | | ??????????????? # + ""???? ????# ???????# | | ???????????????? # ????? ????# ??????# | | ????????????????# [ #?????# +##????# ??????# | | ???????????###### *% k ######## ####### ??????# | | ???????????? Y% ? ######## | | ?????????????? g %= %* ? #####?# | | ????????????????# ###??#%!#? #?# | | ???????????????## !%[ #??# %## #??# | | ???????????????# =%== #### ###########+###### | | ???????????????# ## #g + #? | | ???????????????# @ g% ####### """"" #? | | ???????????????# [[ ###r####???# "??????? | | ???????????????# [[ =! ##??# "??????? | | ???????????????# [[=%"" u #### ""??????? | | ???????????????# =[Y" k ## "???????? | | ???????????????# "" # ## "???????? | | ???????????????# # ### ???????? | | ???????????????### ###### """ " u #####???????? | | ?????????????????##?????# """ " "k #???????????? | | ????????????????????????# """ "" ####???????????? | | ????????????????????????###########??????????????? | | | | | | | | | | | | | | | | | | | | | | | | | | | | | +----------------------------------------------------+ Best States ------------- Heat Dissipation 38 Energy Generation 10 Energy Capacity 250 Matter Stores 300 Matter Capacity 300 Sight Range 16 Terrain Scan Density 10 Additional Mass Support 6 Armor Coverage 150 Evasion (%) 59 Item Schematics ----------------- Hover Unit | -9/Materials | Scanalyzed Robot Schematics ------------------ None Fabricated ------------ Nothing Alien Tech Used ----------------- None Achievements -------------- None Challenges ------------ None Game ------ Seed RefineryEnhancedClaw Manual? 0 Play Time 00:21:37 Cumulative 28.6 hours Start 2024.04.18 @ 18:23:01 End 2024.04.18 @ 19:43:45 Sessions 1 Manual Loads 0 Difficulty Rogue Special Mode None Game No. 18 Rogue 18 Adventurer 0 Explorer 0 Win Type - Total 0 Types 0/0/0/0/0/0/0/0/0 Lore% 20 Gallery% 28 Achievement% 21 Wizard Run 0 Options --------- Layout 0 ASCII 0 Keyboard 1 Movement Vi Keybinds 0 Fullscreen 2 Font 20/Terminus Map View 66x50 Zoom Use 0% Tactical HUD 1 Map Filters NONE Filters NONE Steam 1 RUN: f2891cdf-aa45-4d27-8843-f1bad3615703